fUST/lending_fUST_20250727
["ID","MTS","AMOUNT","RATE_DAILY","PERIOD"]
[375332174,1753626636690,-460.0,0.00019724,2]
[375332175,1753626636700,-526.87097118,0.00019724,2]
[375332176,1753626636710,-460.0,0.00019724,2]
[375332177,1753626636720,-460.0,0.00019724,2]
[375332178,1753626636731,-460.0,0.00019724,2]
[375332179,1753626636741,-465.48932078,0.00019724,2]
[375332180,1753626636751,-460.0,0.00019724,2]
[375332181,1753626636762,-460.0,0.00019724,2]
[375332182,1753626636772,-460.0,0.00019724,2]
[375332183,1753626636783,-466.66142418,0.00019724,2]
[375332184,1753626636941,-460.0,0.00019724,2]
[375332185,1753626636958,-460.0,0.00019724,2]
[375332186,1753626636969,-288.83,0.00019724,2]
[375332187,1753626636979,-460.0,0.00019724,2]
[375332188,1753626636988,-460.0,0.00019724,2]
[375332189,1753626636997,-570.91,0.00019724,2]
[375332190,1753626637006,-460.0,0.00019724,2]
[375332191,1753626637016,-472.692786,0.00019724,2]
[375332192,1753626637025,-460.0,0.00019724,2]
[375332193,1753626637036,-460.0,0.00019724,2]
[375332194,1753626637045,-460.0,0.00019724,2]
[375332195,1753626637054,-460.0,0.00019724,2]
[375332196,1753626637063,-478.07262341,0.00019724,2]
[375332197,1753626637073,-460.0,0.00019724,2]
[375332198,1753626637082,-460.0,0.00019724,2]
[375332199,1753626637091,-460.0,0.00019724,2]
[375332200,1753626637100,-460.0,0.00019724,2]
[375332201,1753626637109,-460.0,0.00019724,2]
[375332202,1753626637118,-460.0,0.00019724,2]
[375332203,1753626637128,-460.0,0.00019724,2]
[375332204,1753626637137,-460.0,0.00019724,2]
[375332205,1753626637147,-460.0,0.00019724,2]
[375332206,1753626637157,-460.0,0.00019724,2]
[375332207,1753626637167,-460.0,0.00019724,2]
[375332208,1753626637177,-460.0,0.00019724,2]
[375332209,1753626637187,-460.0,0.00019724,2]
[375332210,1753626637197,-460.0,0.00019724,2]
[375332211,1753626637206,-460.0,0.00019724,2]
[375332212,1753626637215,-540.48,0.00019724,2]
[375332213,1753626637224,-500.0,0.00019724,2]
[375332214,1753626637234,-460.0,0.00019724,2]
[375332215,1753626637243,-460.0,0.00019724,2]
[375332216,1753626637253,-460.0,0.00019724,2]
[375332217,1753626637262,-460.0,0.00019724,2]
[375332218,1753626637272,-460.0,0.00019724,2]
[375332219,1753626637282,-460.0,0.00019724,2]
[375332220,1753626637292,-460.0,0.00019724,2]
[375332221,1753626637302,-1247.19,0.00019724,2]
[375332222,1753626637311,-460.0,0.00019724,2]
[375332223,1753626637322,-460.0,0.00019724,2]
[375332224,1753626637332,-460.0,0.00019724,2]
[375332225,1753626637342,-460.0,0.00019724,2]
[375332226,1753626637352,-640.61,0.00019724,2]
[375332227,1753626637362,-460.0,0.00019724,2]
[375332229,1753626637372,-460.0,0.00019724,2]
[375332230,1753626637382,-460.0,0.00019724,2]
[375332231,1753626637392,-460.0,0.00019724,2]
[375332232,1753626637401,-460.0,0.00019724,2]
[375332233,1753626637412,-458.93393877,0.00019724,2]
[375332234,1753626637422,-460.0,0.00019725,2]
[375332235,1753626637432,-460.0,0.00019725,2]
[375332236,1753626637442,-460.0,0.00019725,2]
[375332237,1753626637452,-460.0,0.00019725,2]
[375332238,1753626637463,-604.7956408,0.00019725,2]
[375332240,1753626637474,-460.0,0.00019725,2]
[375332241,1753626637484,-556.03,0.00019725,2]
[375332242,1753626637494,-460.0,0.00019725,2]
[375332243,1753626637504,-460.0,0.00019725,2]
[375332244,1753626637514,-460.0,0.00019725,2]
[375332245,1753626637527,-460.0,0.00019725,2]
[375332246,1753626637538,-460.0,0.00019725,2]
[375332247,1753626637548,-460.0,0.00019725,2]
[375332248,1753626637558,-460.0,0.00019725,2]
[375332249,1753626637570,-460.0,0.00019725,2]
[375332250,1753626637585,-460.0,0.00019725,2]
[375332251,1753626637595,-460.0,0.00019725,2]
[375332252,1753626637604,-460.0,0.00019725,2]
[375332253,1753626637615,-460.0,0.00019725,2]
[375332254,1753626637624,-460.0,0.00019725,2]
[375332255,1753626637634,-460.0,0.00019725,2]
[375332256,1753626637644,-460.0,0.00019725,2]
[375332257,1753626637653,-731.73,0.00019725,2]
[375332258,1753626637663,-2957.88,0.00019725,2]
[375332259,1753626637678,-790.48,0.00019725,2]
[375332260,1753626637687,-465.1891006,0.00019726,2]
[375332261,1753626637697,-2082.74,0.00019726,2]
[375332262,1753626637707,-429.18897556,0.00019726,2]
[375332263,1753626637716,-1601.15,0.00019726,2]
[375332264,1753626637726,-875.29,0.00019726,2]
[375332266,1753626637736,-460.0,0.00019726,2]
[375332268,1753626637746,-460.0,0.00019726,2]
[375332270,1753626637755,-1168.5,0.00019726,2]
[375332271,1753626637764,-460.0,0.00019726,2]
[375332272,1753626637774,-460.0,0.00019726,2]
[375332273,1753626637783,-3568.75049825,0.00019752,2]
[375332274,1753626637793,-500.0,0.00019773,2]
[375332275,1753626637803,-500.0,0.0001983,2]
[375332276,1753626637813,-1399.1578852,0.00019898,2]
[375332277,1753626637822,-460.0,0.00019997,2]
[375332278,1753626637831,-460.0,0.00019997,2]
[375332280,1753626637840,-250.42189344,0.00019997,2]
[375332282,1753626637850,-582.421327,0.00019997,2]
[375332283,1753626637860,-460.0,0.00019997,2]
[375332284,1753626637869,-460.0,0.00019997,2]
[375332286,1753626637879,-460.0,0.00019997,2]
[375332287,1753626637888,-460.0,0.00019997,2]
[375332289,1753626637898,-460.0,0.00019997,2]
[375332291,1753626637907,-460.0,0.00019997,2]
[375332293,1753626637917,-2076.27,0.00019997,2]
[375332294,1753626637926,-460.0,0.00019997,2]
[375332295,1753626637938,-460.0,0.00019997,2]
[375332296,1753626637948,-460.0,0.00019997,2]
[375332297,1753626637958,-460.0,0.00019997,2]
[375332298,1753626637967,-460.0,0.00019997,2]
[375332299,1753626637978,-1657.14,0.00019997,2]
[375332300,1753626637987,-498.6,0.00019997,2]
[375332301,1753626637996,-460.0,0.00019997,2]
[375332302,1753626638006,-460.0,0.00019997,2]
[375332303,1753626638015,-460.0,0.00019997,2]
[375332304,1753626638025,-460.0,0.00019997,2]
[375332305,1753626638034,-460.0,0.00019997,2]
[375332306,1753626638043,-460.0,0.00019997,2]
[375332307,1753626638052,-320.32554277,0.00019997,2]
[375332308,1753626638142,-161.51445723,0.00019997,2]
[375332309,1753626638151,-460.0,0.00019998,2]
[375332310,1753626638162,-460.0,0.00019998,2]
[375332311,1753626638171,-380.84309308,0.00019998,2]
[375332312,1753626638183,-79.15690692,0.00019998,2]
[375332314,1753626638192,-460.0,0.00019998,2]
[375332317,1753626638201,-460.0,0.00019998,2]
[375332319,1753626638212,-313.37,0.00019998,2]
[375332321,1753626638221,-526.31,0.00019998,2]
[375332324,1753626638230,-460.0,0.00019998,2]
[375332325,1753626638239,-100.18309308,0.00019998,2]
[375332330,1753626638721,-460.0,0.00019178,2]
[375332331,1753626638731,-155.3752953,0.00019178,2]
[375332332,1753626638741,-460.0,0.00019449,2]
[375332333,1753626638750,-460.0,0.00019449,2]
[375332334,1753626638760,-1659.99,0.00019451,2]
[375332335,1753626638774,-451.81564048,0.00019723,2]
[375332336,1753626638783,-1659.99,0.00019725,2]
[375332337,1753626638793,-359.81690692,0.00019998,2]
[375332338,1753626638802,-460.0,0.00019998,2]
[375332339,1753626638812,-460.0,0.00019998,2]
[375332340,1753626638821,-460.0,0.00019998,2]
[375332341,1753626638830,-460.0,0.00019998,2]
[375332342,1753626638839,-542.11,0.00019998,2]
[375332343,1753626638849,-460.0,0.00019998,2]
[375332344,1753626638858,-460.0,0.00019998,2]
[375332345,1753626638867,-190.96473976,0.00019998,2]
[375332346,1753626638877,-460.0,0.00019998,2]
[375332347,1753626638886,-460.0,0.00019998,2]
[375332348,1753626638896,-460.0,0.00019998,2]
[375332349,1753626638906,-393.91001982,0.00019998,2]
[375332350,1753626638918,-66.08998018,0.00019998,2]
[375332351,1753626638927,-244.98,0.00019998,2]
[375332352,1753626638937,-540.48,0.00019998,2]
[375332353,1753626638947,-460.0,0.00019998,2]
[375332354,1753626638956,-185.94323171,0.00019998,2]
[375332355,1753626638971,-274.05676829,0.00019998,2]
[375332356,1753626638981,-301.94323171,0.00019998,2]
[375332357,1753626639106,-544.0375489,0.00019998,2]
[375332358,1753626639119,-308.7804,0.00019998,2]
[375332371,1753626639982,-92.42881939,0.00019998,2]
[375332372,1753626639991,-460.0,0.00019998,2]
[375332374,1753626640001,-460.0,0.00019998,2]
[375332376,1753626640012,-460.0,0.00019998,2]
[375332378,1753626640023,-460.0,0.00019998,2]
[375332380,1753626640032,-480.31965386,0.00019998,2]
[375332381,1753626640044,-160.29034614,0.00019998,2]
[375332382,1753626640054,-460.0,0.00019998,2]
[375332383,1753626640064,-473.8932571,0.00019998,2]
[375332384,1753626640073,-37.45711476,0.00019998,2]
[375332385,1753626640085,-422.54288524,0.00019998,2]
[375332386,1753626640095,-460.0,0.00019999,2]
[375332387,1753626640104,-460.0,0.00019999,2]
[375332388,1753626640113,-126.7393591,0.00019999,2]
[375332389,1753626640125,-415.9206409,0.00019999,2]
[375332390,1753626640135,-552.85032552,0.00019999,2]
[375332391,1753626640144,-460.0,0.00019999,2]
[375332392,1753626640154,-500.0,0.00019999,2]
[375332393,1753626640164,-536.66,0.00019999,2]
[375332394,1753626640173,-731.73,0.00019999,2]
[375332395,1753626640183,-1625.86639883,0.00019999,2]
[375332396,1753626640195,-766.45940004,0.00019999,2]
[375332397,1753626640209,-565.55420113,0.00019999,2]
[375332398,1753626640220,-790.48,0.00019999,2]
[375332399,1753626640230,-1659.99,0.00019999,2]
[375332400,1753626640240,-2082.74,0.0002,2]
[375332401,1753626640250,-1601.15,0.0002,2]
[375332402,1753626640260,-875.29,0.0002,2]
[375332403,1753626640270,-460.0,0.0002,2]
[375332404,1753626640280,-254.22,0.0002,2]
[375332405,1753626640290,-1168.5,0.0002,2]
[375332406,1753626640300,-460.0,0.0002,2]
[375332407,1753626640309,-150.0,0.00020008,2]
[375332408,1753626640319,-500.0,0.00020021,2]
[375332409,1753626640328,-500.0,0.00020021,2]
[375332410,1753626640338,-500.69756271,0.00020021,2]
[375332411,1753626640347,-500.0,0.00020021,2]
[375332412,1753626640357,-3568.75049825,0.00020083,2]
[375332413,1753626640366,-4621.83924298,0.00020173,2]
[375332414,1753626640379,-5515.51398224,0.00020173,2]
[375332415,1753626640389,-354.114576,0.00020187,2]
[375332416,1753626640398,-460.0,0.00020271,2]
[375332417,1753626640408,-460.0,0.00020271,2]
[375332418,1753626640418,-1634.06820582,0.00020271,2]
[375332419,1753626640429,-442.20179418,0.00020271,2]
[375332420,1753626640439,-160.79,0.00020271,2]
[375332421,1753626640450,-460.0,0.00020271,2]
[375332422,1753626640459,-460.0,0.00020271,2]
[375332423,1753626640469,-1657.14,0.00020271,2]
[375332424,1753626640478,-460.0,0.00020271,2]
[375332425,1753626640488,-460.0,0.00020271,2]
[375332426,1753626640498,-460.0,0.00020271,2]
[375332427,1753626640508,-477.09,0.00020271,2]
[375332428,1753626640519,-460.0,0.00020271,2]
[375332429,1753626640532,-247.75587408,0.00020272,2]
[375332430,1753626640543,-460.0,0.00020272,2]
[375332431,1753626640553,-509.47,0.00020272,2]
[375332432,1753626640563,-460.0,0.00020272,2]
[375332433,1753626640573,-460.0,0.00020272,2]
[375332434,1753626640583,-460.0,0.00020272,2]
[375332435,1753626640594,-460.0,0.00020272,2]
[375332436,1753626640605,-460.0,0.00020272,2]
[375332437,1753626640615,-460.0,0.00020272,2]
[375332438,1753626640625,-540.48,0.00020272,2]
[375332439,1753626640635,-1247.19,0.00020272,2]
[375332440,1753626640645,-460.0,0.00020272,2]
[375332441,1753626640655,-460.0,0.00020272,2]
[375332442,1753626640664,-640.61,0.00020272,2]
[375332443,1753626640674,-460.0,0.00020272,2]
[375332444,1753626640684,-2082.74,0.00020273,2]
[375332445,1753626640694,-1601.15,0.00020273,2]
[375332446,1753626640705,-731.73,0.00020273,2]
[375332447,1753626640715,-875.29,0.00020273,2]
[375332448,1753626640724,-2957.88,0.00020273,2]
[375332449,1753626640734,-460.0,0.00020273,2]
[375332450,1753626640744,-1168.5,0.00020273,2]
[375332451,1753626640753,-460.0,0.00020273,2]
[375332452,1753626640763,-790.48,0.00020273,2]
[375332453,1753626640772,-151.0,0.00020273,2]
[375332454,1753626640782,-1659.99,0.00020273,2]
[375332455,1753626640935,-151.734931,0.00020273,2]
[375332456,1753626640946,-500.0,0.00020321,2]
[375332457,1753626640955,-2587.63814553,0.00020322,2]
[375332458,1753626640968,-981.11235272,0.00020322,2]
[375332459,1753626640977,-160.0,0.00020375,2]
[375332460,1753626640987,-500.0,0.00020408,2]
[375332461,1753626640996,-500.0,0.00020408,2]
[375332462,1753626641006,-513.72045867,0.00020408,2]
[375332463,1753626641017,-600.0,0.00020412,2]
[375332464,1753626641026,-2076.27,0.00020545,2]
[375332465,1753626641036,-204.51635629,0.00020545,2]
[375332466,1753626641047,-255.48364371,0.00020545,2]
[375332467,1753626641057,-1657.14,0.00020545,2]
[375332468,1753626641067,-460.0,0.00020545,2]
[375332469,1753626641077,-460.0,0.00020545,2]
[375332470,1753626641087,-460.0,0.00020545,2]
[375332471,1753626641096,-460.0,0.00020546,2]
[375332472,1753626641106,-460.0,0.00020546,2]
[375332473,1753626641115,-460.0,0.00020546,2]
[375332474,1753626641124,-460.0,0.00020546,2]
[375332475,1753626641133,-472.58,0.00020546,2]
[375332476,1753626641143,-460.0,0.00020546,2]
[375332477,1753626641152,-540.48,0.00020546,2]
[375332478,1753626641162,-500.0,0.00020546,2]
[375332479,1753626641172,-1247.19,0.00020546,2]
[375332480,1753626641182,-609.38,0.00020546,2]
[375332481,1753626641191,-151.0,0.00020546,2]
[375332482,1753626641200,-579.66,0.00020546,2]
[375332483,1753626641210,-151.0,0.00020546,2]
[375332484,1753626641219,-22.48405699,0.00020546,2]
[375332485,1753626641273,150.0,0.00018259,2]
[375332509,1753626642975,-150.0,0.00019128,2]
[375332510,1753626642985,-460.54973681,0.00019178,2]
[375332511,1753626642995,-618.12594301,0.00020546,2]
[375332512,1753626643006,-2082.74,0.00020547,2]
[375332513,1753626643015,-1601.15,0.00020547,2]
[375332514,1753626643025,-731.73,0.00020547,2]
[375332515,1753626643035,-875.29,0.00020547,2]
[375332516,1753626643044,-2149.84016753,0.00020547,2]
[375332517,1753626643069,-808.03983247,0.00020547,2]
[375332519,1753626643079,-167.9,0.00020547,2]
[375332521,1753626643088,-1168.5,0.00020547,2]
[375332522,1753626643098,-460.0,0.00020547,2]
[375332524,1753626643109,-790.48,0.00020547,2]
[375332526,1753626643119,-1659.99,0.00020547,2]
[375332528,1753626643129,-3568.75049825,0.00020635,2]
[375332529,1753626643139,-1167.10920213,0.00020745,2]
[375332530,1753626643149,-500.0,0.00020761,2]
[375332531,1753626643158,-160.0,0.00020767,2]
[375332533,1753626643169,-160.0,0.00020767,2]
[375332534,1753626643178,-214.84090509,0.00020767,2]
[375332536,1753626643188,-160.0,0.00020767,2]
[375332537,1753626643198,-840.75038169,0.00020777,2]
[375332538,1753626643207,-312.16666667,0.00020781,2]
[375332539,1753626643216,-2076.27,0.00020819,2]
[375332540,1753626643226,-460.0,0.00020819,2]
[375332541,1753626643235,-1657.14,0.00020819,2]
[375332542,1753626643245,-460.0,0.00020819,2]
[375332543,1753626643255,-182.74,0.00020819,2]
[375332545,1753626643265,-548.57,0.00020819,2]
[375332547,1753626643276,-375.18,0.0002082,2]
[375332548,1753626643286,-460.0,0.0002082,2]
[375332549,1753626643295,-460.0,0.0002082,2]
[375332550,1753626643305,-460.0,0.0002082,2]
[375332551,1753626643314,-747.17,0.0002082,2]
[375332552,1753626643323,-540.48,0.0002082,2]
[375332553,1753626643332,-256.650549,0.0002082,2]
[375332554,1753626643342,-261.200108,0.0002082,2]
[375332555,1753626643351,-1170.84830188,0.0002082,2]
[375332556,1753626643364,-76.34169812,0.0002082,2]
[375332557,1753626643374,-151.0,0.0002082,2]
[375332558,1753626643383,-151.0,0.0002082,2]
[375332559,1753626643392,-151.0,0.0002082,2]
[375332560,1753626643402,-460.0,0.0002082,2]
[375332561,1753626643412,-151.0,0.0002082,2]
[375332562,1753626643421,-151.0,0.0002082,2]
[375332563,1753626643431,-1311.77,0.0002082,2]
[375332564,1753626643441,-640.61,0.0002082,2]
[375332565,1753626643450,-2082.74,0.00020821,2]
[375332566,1753626643460,-151.0,0.00020821,2]
[375332567,1753626643470,-1601.15,0.00020821,2]
[375332568,1753626643480,-731.73,0.00020821,2]
[375332569,1753626643490,-875.29,0.00020821,2]
[375332570,1753626643499,-2957.88,0.00020821,2]
[375332571,1753626643509,-1168.5,0.00020821,2]
[375332572,1753626643520,-460.0,0.00020821,2]
[375332573,1753626643538,-790.48,0.00020821,2]
[375332574,1753626643548,-1659.99,0.00020821,2]
[375332575,1753626643558,-165.53304094,0.00020829,2]
[375332577,1753626643569,-3568.75049825,0.0002084,2]
[375332578,1753626643579,-150.0,0.00020878,2]
[375332579,1753626643589,-420.0,0.00020899,2]
[375332580,1753626643600,-693.14606609,0.000209,4]
[375332581,1753626643610,-260.0,0.00020923,2]
[375332583,1753626643619,-1000.0,0.00020956,2]
[375332584,1753626643629,-693.1460659,0.00021038,4]
[375332585,1753626643638,-2076.27,0.00021093,2]
[375332586,1753626643648,-151.0,0.00021093,2]
[375332587,1753626643657,-151.0,0.00021093,2]
[375332588,1753626643666,-151.0,0.00021093,2]
[375332589,1753626643675,-460.0,0.00021093,2]
[375332590,1753626643684,-1657.14,0.00021093,2]
[375332591,1753626643694,-460.0,0.00021093,2]
[375332592,1753626643703,-460.0,0.00021094,2]
[375332593,1753626643713,-460.0,0.00021094,2]
[375332594,1753626643722,-460.0,0.00021094,2]
[375332595,1753626643732,-747.17,0.00021094,2]
[375332596,1753626643742,-540.48,0.00021094,2]
[375332597,1753626643752,-1247.19,0.00021094,2]
[375332598,1753626643761,-460.0,0.00021094,2]
[375332599,1753626643772,-1311.77,0.00021094,2]
[375332600,1753626643781,-640.61,0.00021094,2]
[375332601,1753626643791,-2082.74,0.00021095,2]
[375332602,1753626643800,-1601.15,0.00021095,2]
[375332603,1753626643810,-731.73,0.00021095,2]
[375332604,1753626643819,-875.29,0.00021095,2]
[375332605,1753626643828,-2957.88,0.00021095,2]
[375332606,1753626643839,-1168.5,0.00021095,2]
[375332607,1753626643848,-460.0,0.00021095,2]
[375332608,1753626643857,-790.48,0.00021095,2]
[375332609,1753626643867,-1659.99,0.00021095,2]
[375332610,1753626643876,-614.7,0.00021128,4]
[375332611,1753626643886,-246.571,0.00021164,2]
[375332612,1753626643895,-693.1460659,0.00021176,4]
[375332613,1753626643905,-3568.75049825,0.00021252,2]
[375332614,1753626643915,-693.1460659,0.00021314,5]
[375332615,1753626643924,-151.0,0.00021367,2]
[375332616,1753626643934,-2076.27,0.00021367,2]
[375332617,1753626643946,-151.0,0.00021367,2]
[375332618,1753626643956,-151.0,0.00021367,2]
[375332619,1753626643965,-460.0,0.00021367,2]
[375332620,1753626643975,-1657.14,0.00021367,2]
[375332621,1753626643984,-460.0,0.00021367,2]
[375332622,1753626643994,-460.0,0.00021368,2]
[375332623,1753626644003,-750.969191,0.00021368,2]
[375332624,1753626644013,-750.969191,0.00021368,2]
[375332626,1753626644024,-460.0,0.00021368,2]
[375332628,1753626644034,-747.17,0.00021368,2]
[375332630,1753626644043,-540.48,0.00021368,2]
[375332632,1753626644054,-1247.19,0.00021368,2]
[375332633,1753626644063,-460.0,0.00021368,2]
[375332635,1753626644073,-1311.77,0.00021368,2]
[375332637,1753626644083,-640.61,0.00021368,2]
[375332639,1753626644101,-1983.56522847,0.00021369,2]
[375332640,1753626644119,-99.17477153,0.00021369,2]
[375332641,1753626644129,-1601.15,0.00021369,2]
[375332642,1753626644139,-731.73,0.00021369,2]
[375332643,1753626644148,-875.29,0.00021369,2]
[375332644,1753626644158,-2957.88,0.00021369,2]
[375332645,1753626644168,-1168.5,0.00021369,2]
[375332646,1753626644178,-460.0,0.00021369,2]
[375332647,1753626644188,-790.48,0.00021369,2]
[375332648,1753626644198,-1659.99,0.00021369,2]
[375332649,1753626644209,-283.93462566,0.00021384,2]
[375332650,1753626644219,-693.1460659,0.00021452,5]
[375332651,1753626644229,-360.0,0.00021471,2]
[375332652,1753626644238,-600.0,0.00021508,2]
[375332653,1753626644249,-614.7,0.00021561,4]
[375332654,1753626644259,-693.1460659,0.0002159,5]
[375332655,1753626644270,-3568.75049825,0.0002161,2]
[375332656,1753626644280,-2076.27,0.00021641,2]
[375332657,1753626644290,-460.0,0.00021641,2]
[375332658,1753626644302,-1657.14,0.00021641,2]
[375332659,1753626644311,-176.590682,0.00021641,2]
[375332660,1753626644321,-460.0,0.00021641,2]
[375332661,1753626644331,-460.0,0.00021642,2]
[375332662,1753626644341,-460.0,0.00021642,2]
[375332663,1753626644351,-540.48,0.00021642,2]
[375332664,1753626644361,-1247.19,0.00021642,2]
[375332665,1753626644371,-460.0,0.00021642,2]
[375332666,1753626644380,-1311.77,0.00021642,2]
[375332667,1753626644391,-640.61,0.00021642,2]
[375332668,1753626644401,-151.0,0.00021643,2]
[375332669,1753626644411,-151.0,0.00021643,2]
[375332670,1753626644422,-2082.74,0.00021643,2]
[375332671,1753626644432,-1601.15,0.00021643,2]
[375332672,1753626644442,-731.73,0.00021643,2]
[375332673,1753626644452,-875.29,0.00021643,2]
[375332674,1753626644462,-2957.88,0.00021643,2]
[375332675,1753626644472,-1168.5,0.00021643,2]
[375332676,1753626644482,-460.0,0.00021643,2]
[375332677,1753626644492,-790.48,0.00021643,2]
[375332678,1753626644502,-1659.99,0.00021643,2]
[375332679,1753626644519,-3568.75049832,0.0002171,2]
[375332680,1753626644532,-693.1460659,0.00021728,5]
[375332681,1753626644543,-352.27452416,0.00021744,2]
[375332682,1753626644553,-1409.09809666,0.00021744,2]
[375332683,1753626644563,-3170.47071748,0.00021744,2]
[375332684,1753626644574,-5636.39238663,0.00021744,2]
[375332685,1753626644584,-8798.056241,0.00021744,2]
[375332686,1753626644594,-151.0,0.00021744,2]
[375332687,1753626644604,-151.0,0.00021744,2]
[375332688,1753626644614,-151.0,0.00021744,2]
[375332689,1753626644624,-151.0,0.00021744,2]
[375332690,1753626644635,-151.0,0.00021744,2]
[375332691,1753626644645,-151.0,0.00021744,2]
[375332692,1753626644655,-150.0,0.00021748,2]
[375332693,1753626644665,-1135.73850265,0.00021784,2]
[375332694,1753626644676,-693.1460659,0.00021866,6]
[375332695,1753626644687,-1167.10920213,0.00021867,2]
[375332696,1753626644697,-2076.27,0.00021915,2]
[375332697,1753626644709,-460.0,0.00021915,2]
[375332698,1753626644719,-1657.14,0.00021915,2]
[375332699,1753626644728,-348.78,0.00021916,2]
[375332700,1753626644738,-460.0,0.00021916,2]
[375332701,1753626644748,-540.48,0.00021916,2]
[375332702,1753626644757,-1247.19,0.00021916,2]
[375332703,1753626644767,-585.98,0.00021916,2]
[375332704,1753626644777,-1311.77,0.00021916,2]
[375332705,1753626644787,-640.61,0.00021916,2]
[375332706,1753626644796,-2082.74,0.00021917,2]
[375332707,1753626644806,-1601.15,0.00021917,2]
[375332708,1753626644815,-731.73,0.00021917,2]
[375332709,1753626644825,-875.29,0.00021917,2]
[375332710,1753626644835,-2957.88,0.00021917,2]
[375332711,1753626644845,-1168.5,0.00021917,2]
[375332712,1753626644855,-460.0,0.00021917,2]
[375332713,1753626644864,-790.48,0.00021917,2]
[375332714,1753626644874,-1659.99,0.00021917,2]
[375332715,1753626644884,-153.0,0.00021918,2]
[375332716,1753626644893,-153.0,0.00021918,2]
[375332717,1753626644903,-153.0,0.00021918,2]
[375332718,1753626644912,-153.0,0.00021918,2]
[375332719,1753626644921,-153.0,0.00021918,2]
[375332720,1753626644931,-153.0,0.00021918,2]
[375332721,1753626644940,-153.0,0.00021918,2]
[375332722,1753626644950,-153.0,0.00021918,2]
[375332723,1753626644959,-153.0,0.00021918,2]
[375332724,1753626644969,-153.0,0.00021918,2]
[375332725,1753626644978,-153.0,0.00021918,2]
[375332726,1753626644987,-153.0,0.00021918,2]
[375332727,1753626645048,-153.0,0.00021918,2]
[375332728,1753626645058,-153.0,0.00021918,2]
[375332729,1753626645067,-153.0,0.00021918,2]
[375332730,1753626645076,-153.0,0.00021918,2]
[375332731,1753626645086,-153.0,0.00021918,2]
[375332732,1753626645095,-153.0,0.00021918,2]
[375332733,1753626645104,-153.0,0.00021918,2]
[375332734,1753626645114,-153.0,0.00021918,2]
[375332735,1753626645123,-153.0,0.00021918,2]
[375332736,1753626645133,-153.0,0.00021918,2]
[375332737,1753626645142,-153.0,0.00021918,2]
[375332738,1753626645151,-153.0,0.00021918,2]
[375332739,1753626645161,-153.0,0.00021918,2]
[375332740,1753626645170,-153.0,0.00021918,2]
[375332741,1753626645179,-153.0,0.00021918,2]
[375332742,1753626645189,-153.0,0.00021918,2]
[375332743,1753626645198,-153.0,0.00021918,2]
[375332744,1753626645208,-153.0,0.00021918,2]
[375332745,1753626645217,-153.0,0.00021918,2]
[375332746,1753626645227,-153.0,0.00021918,2]
[375332747,1753626645236,-153.0,0.00021918,2]
[375332748,1753626645245,-153.0,0.00021918,2]
[375332749,1753626645255,-153.0,0.00021918,2]
[375332750,1753626645265,-153.0,0.00021918,2]
[375332751,1753626645274,-153.0,0.00021918,2]
[375332752,1753626645284,-153.0,0.00021918,2]